bitfinex/quotes_ETHUSD_20251006
["timestamp","ask_amount","ask_price","bid_price","bid_amount"]
[1759760679920,3.80166125,4647.5,4644.9,0.4432]
[1759760680115,4.55238915,4646.0,4645.4,0.108]
[1759760680330,0.108,4646.1,4645.4,0.5512]
[1759760680569,2.26034869,4646.1,4645.4,0.5512]
[1759760680854,2.15238915,4646.0,4645.4,0.108]
[1759760681053,2.15248536,4645.8,4645.4,0.108]
[1759760681621,2.508,4646.1,4645.4,0.108]
[1759760681818,2.15254024,4645.7,4645.4,0.108]
[1759760682019,2.15249364,4645.8,4645.4,0.108]
[1759760682217,0.108,4646.1,4645.4,0.108]
[1759760682622,2.15235153,4646.1,4645.9,0.108]
[1759760682827,2.15244023,4645.9,4645.4,0.4432]
[1759760683040,2.15244023,4645.9,4645.7,0.108]
[1759760683224,2.15223169,4646.4,4645.7,0.108]
[1759760683553,2.15223169,4646.4,4641.1,2.151]
[1759760683554,0.4578,4645.8,4645.0,0.108]
[1759760683732,2.15284789,4645.1,4644.5,0.4442]
[1759760684135,2.15286789,4645.0,4644.5,0.4442]
[1759760684353,4.61148405,4645.8,4644.7,2.15299158]
[1759760684527,2.60746961,4646.4,4644.5,2.15404994]
[1759760684528,0.91302317,4646.4,4644.8,0.4432]
[1759760684722,2.4,4646.2,4644.5,0.001]
[1759760685049,2.15261466,4645.6,4644.6,2.59623793]
[1759760685254,2.15261466,4645.6,4644.6,0.4432]
[1759760685566,2.15253048,4645.7,4644.6,2.59623064]
[1759760685849,2.15257447,4645.6,4645.5,0.035578]
[1759760686148,2.15249925,4645.8,4645.5,0.035578]
[1759760686327,0.4578,4646.8,4645.5,0.035578]
[1759760686526,4.859,4646.7,4645.5,0.035578]
[1759760686726,2.4,4646.5,4645.5,0.035578]
[1759760686933,3.60468224,4646.6,4645.5,0.035578]
[1759760687135,2.1524357,4645.9,4645.5,0.035578]
[1759760687349,2.15256909,4645.7,4645.5,0.035578]
[1759760687536,0.4578,4646.4,4645.5,0.035578]
[1759760687733,0.73206229,4646.3,4645.5,0.035578]
[1759760687941,0.27426229,4646.3,4645.5,0.035578]
[1759760688122,0.4578,4646.3,4645.5,0.035578]
[1759760688328,2.15257447,4645.6,4645.5,0.035578]
[1759760688537,5.01037447,4645.6,4645.5,0.035578]
[1759760688757,4.55257447,4645.6,4645.5,0.035578]
[1759760688934,5.01037447,4645.6,4645.5,0.035578]
[1759760689250,5.72666263,4645.6,4645.5,0.035578]
[1759760689451,5.26886263,4645.6,4645.5,0.035578]
[1759760689652,5.72666263,4645.6,4645.5,0.035578]
[1759760690238,8.18566263,4645.6,4645.5,0.035578]
[1759760691759,6.03308816,4645.6,4644.5,0.001]
[1759760691936,2.15303793,4644.6,4644.5,0.001]
[1759760692142,4.61303793,4644.6,4644.5,0.001]
[1759760692337,7.47083793,4644.6,4644.5,0.001]
[1759760693627,7.57883793,4644.6,4644.5,0.001]
[1759760694234,5.11883793,4644.6,4644.5,0.001]
[1759760694441,4.66103793,4644.6,4644.5,0.001]
[1759760694640,4.968,4644.6,4644.5,0.001]
[1759760694842,7.57883793,4644.6,4644.5,0.001]
[1759760695154,7.12103793,4644.6,4644.5,0.001]
[1759760695363,2.508,4644.6,4644.5,0.001]
[1759760695659,2.15289977,4644.9,4644.5,0.109]
[1759760695859,2.26081566,4645.1,4644.5,0.109]
[1759760696176,2.57229108,4645.9,4644.5,0.109]
[1759760696177,0.4578,4646.0,4644.6,0.4432]
[1759760696465,0.4578,4646.0,4644.5,0.33542041]
[1759760696466,2.46,4645.9,4644.5,0.22742041]
[1759760696664,2.1528461,4645.1,4644.5,0.001]
[1759760696852,2.46,4645.4,4644.5,0.001]
[1759760697040,4.61359989,4645.6,4644.7,2.15294821]
[1759760697241,2.461,4645.6,4644.6,0.4432]
[1759760697445,2.15275977,4645.3,4644.6,0.4432]
[1759760697749,2.15262417,4645.5,4644.7,0.2598283]
[1759760697953,2.1528197,4645.1,4644.6,0.4432]
[1759760698153,2.15286133,4645.0,4644.6,0.4432]
[1759760698331,2.461,4645.7,4644.6,0.4432]
[1759760698332,2.15279942,4645.2,4644.6,0.4432]
[1759760698541,2.8578,4645.8,4644.5,0.001]
[1759760698866,2.15284719,4645.1,4644.5,0.001]
[1759760699041,2.15294623,4644.8,4644.5,0.001]
[1759760699435,2.15299816,4644.7,4644.5,0.001]
[1759760699659,2.15286368,4645.0,4644.5,0.001]
[1759760699865,2.15298081,4644.8,4644.5,0.001]
[1759760700264,2.15300477,4644.7,4644.5,0.001]
[1759760700563,2.15295629,4644.8,4644.5,0.001]
[1759760700738,2.15284445,4645.1,4644.5,0.001]
[1759760700934,0.4578,4646.0,4644.6,0.4432]
[1759760701264,2.15279726,4645.2,4644.6,0.25983708]
[1759760701435,2.15284085,4645.1,4644.5,0.001]
[1759760701636,2.46,4645.4,4644.5,0.001]
[1759760701836,2.15287332,4645.0,4644.5,0.001]
[1759760702063,2.15295343,4644.8,4644.1,0.4432]
[1759760702263,0.4578,4645.2,4644.0,0.001]
[1759760702471,0.29178,4645.1,4644.0,0.001]
[1759760702849,0.4578,4645.0,4644.0,0.001]
[1759760703047,2.61065493,4645.0,4644.0,0.001]
[1759760703258,2.15299739,4644.7,4644.0,0.001]
[1759760703570,2.15326974,4644.1,4644.0,0.001]
[1759760704140,3.04431483,4644.1,4644.0,0.001]
[1759760704861,0.89104509,4644.1,4644.0,0.001]
[1759760705170,2.459,4644.5,4644.0,0.001]
[1759760705171,2.15323739,4644.2,4644.0,0.001]
[1759760705370,0.4604,4644.7,4644.0,0.001]
[1759760705544,2.15294845,4644.8,4644.1,0.4621]
[1759760705739,2.15289887,4644.9,4644.1,0.4621]
[1759760705950,2.4,4645.1,4644.0,0.001]
[1759760706150,2.15326974,4644.1,4644.0,0.001]
[1759760706352,7.12026974,4644.1,4644.0,0.001]
[1759760706568,2.15350159,4643.6,4643.5,0.001]
[1759760706865,7.12150159,4643.6,4643.5,0.001]
[1759760707235,7.58190159,4643.6,4643.5,0.001]
[1759760708342,7.58390159,4643.6,4643.5,0.001]
[1759760708543,7.12350159,4643.6,4643.5,0.001]
[1759760709075,7.58390159,4643.6,4643.5,0.001]
[1759760710275,7.12350159,4643.6,4643.5,0.001]
[1759760710847,5.12190159,4643.6,4643.5,0.001]
[1759760711046,7.58390159,4643.6,4643.5,0.001]
[1759760711682,7.47590159,4643.6,4643.5,0.001]
[1759760715187,4.55350159,4643.6,4643.5,0.001]
[1759760715491,7.47590159,4643.6,4643.5,0.001]
[1759760715849,7.47590159,4643.6,4642.5,0.001]
[1759760715850,2.15396545,4642.6,4642.5,0.001]
[1759760716045,7.01496545,4642.6,4642.5,0.001]
[1759760716263,7.47536545,4642.6,4642.5,0.001]
[1759760716467,7.01496545,4642.6,4642.5,0.001]
[1759760716651,7.47536545,4642.6,4642.5,0.001]
[1759760717375,8.10896545,4642.6,4642.5,0.001]
[1759760719077,5.955,4642.6,4642.5,0.001]
[1759760719375,4.55396545,4642.6,4642.5,0.001]
[1759760719579,7.01596545,4642.6,4642.5,0.001]
[1759760719875,8.10996545,4642.6,4642.5,0.001]
[1759760720507,8.11196545,4642.6,4642.5,0.001]
[1759760721117,8.11116545,4642.6,4642.5,0.001]
[1759760721478,8.21916545,4642.6,4642.5,0.001]
[1759760723681,8.32595439,4642.6,4642.5,0.001]
[1759760723973,10.94099369,4642.6,4642.5,0.001]
[1759760724176,8.67899369,4642.6,4642.5,0.001]
[1759760724400,5.18765824,4642.4,4640.2,0.4621]
[1759760724601,21.71345902,4642.4,4640.2,0.4621]
[1759760724803,22.17385902,4642.4,4640.2,0.4621]
[1759760725007,2.15535822,4639.6,4639.5,0.4621]
[1759760725193,2.15535822,4639.6,4636.8,2.15662111]
[1759760725194,13.60076148,4640.0,4638.0,0.4621]
[1759760725394,2.4,4639.8,4638.0,0.4621]
[1759760725594,2.4,4639.5,4638.0,0.4621]
[1759760725900,2.15587143,4638.5,4638.0,0.4621]
[1759760726105,2.4,4638.8,4638.0,0.4621]
[1759760726305,2.15590844,4638.5,4638.0,0.4621]
[1759760726506,4.864,4639.0,4638.0,0.4621]
[1759760726684,2.464,4639.0,4638.0,0.4621]
[1759760726888,2.4,4638.9,4638.0,0.4621]
[1759760727105,2.15587121,4638.5,4638.0,0.4621]
[1759760727304,2.4,4638.7,4638.0,0.4621]
[1759760727510,2.15589905,4638.5,4638.0,0.4621]
[1759760727815,2.464,4639.0,4638.0,0.4621]
[1759760727997,2.4,4638.9,4637.6,0.4621]
[1759760728197,2.15607695,4638.1,4637.6,0.4621]
[1759760728389,2.4,4638.9,4637.6,0.4621]
[1759760728390,2.15610435,4638.0,4637.6,0.4621]
[1759760728919,2.15609727,4638.1,4637.7,0.4621]
[1759760729127,2.464,4638.7,4637.8,0.4621]
[1759760729281,2.4,4638.6,4636.6,0.10869858]
[1759760729478,2.4,4638.6,4636.9,2.15660308]
[1759760729479,2.15623149,4637.8,4636.9,2.15660308]
[1759760729813,2.15623515,4637.8,4637.0,0.4621]
[1759760730107,2.464,4638.4,4637.0,0.4621]
[1759760730407,2.4,4638.3,4637.0,0.4621]
[1759760730596,2.15633427,4637.5,4637.0,0.4621]
[1759760731098,2.15623324,4637.8,4637.0,0.4621]
[1759760731290,3.06247541,4638.3,4637.0,0.4621]
[1759760731491,3.06247541,4638.3,4634.7,0.44015706]
[1759760731691,2.15605528,4638.1,4634.8,2.802336]
[1759760732022,2.15632127,4637.6,4635.1,0.6336]
[1759760732181,2.15652211,4637.1,4635.2,0.4621]
[1759760732394,0.35866912,4638.2,4636.3,2.15686853]
[1759760732395,2.4,4638.1,4636.3,2.15686853]
[1759760732617,0.35866912,4638.2,4636.3,2.15686853]
[1759760732618,2.75866912,4638.2,4636.4,0.4621]
[1759760732819,2.75866912,4638.2,4634.8,4.66692957]
[1759760732820,2.4,4637.4,4635.2,0.4335]
[1759760733109,2.15679187,4636.6,4635.4,2.15726581]
[1759760733431,0.95351367,4638.1,4637.1,0.001]
[1759760733729,2.465,4638.0,4637.1,0.001]
[1759760734043,0.108,4637.2,4637.1,0.001]
[1759760734338,7.02047373,4637.2,4637.1,0.001]
[1759760735805,4.55647373,4637.2,4637.1,0.001]
[1759760736040,4.99247373,4637.2,4637.1,0.001]
[1759760736631,5.42838285,4637.2,4637.1,0.001]
[1759760736832,7.89238285,4637.2,4637.1,0.001]
[1759760737128,4.99238285,4637.2,4637.1,0.001]
[1759760737328,4.55647373,4637.2,4637.1,0.001]
[1759760737710,2.1559275,4638.4,4637.1,0.001]
[1759760737711,2.464,4638.1,4637.1,0.4503]
[1759760737910,2.86200117,4638.0,4637.1,0.4503]
[1759760738104,2.15619752,4637.8,4637.1,0.4503]
[1759760738324,0.46200117,4638.0,4637.1,0.4503]
[1759760738526,2.61811074,4638.0,4637.1,0.4503]
[1759760738731,2.15610957,4638.0,4637.1,2.60681064]
[1759760738928,2.15610957,4638.0,4637.2,0.4493]
[1759760739296,2.15616094,4637.9,4637.2,0.4493]
[1759760739723,2.4,4638.5,4637.2,0.4493]
[1759760739924,0.43784694,4638.6,4637.2,2.60576956]
[1759760740124,2.15593661,4638.4,4637.3,1.17203328]
[1759760740322,2.15584373,4638.6,4637.6,2.15627264]
[1759760740500,2.15540467,4639.5,4637.7,0.4493]
[1759760740827,2.15575648,4638.8,4637.7,0.4493]
[1759760741124,0.436,4638.8,4637.3,0.4493]
[1759760741345,2.15609062,4638.1,4637.1,0.001]
[1759760741654,2.836,4638.8,4637.1,0.001]
[1759760741655,2.15638663,4637.4,4637.1,0.001]
[1759760741815,2.836,4638.7,4637.1,0.001]
[1759760741999,0.77,4638.6,4637.2,0.4493]
[1759760742205,0.43718142,4639.2,4637.3,0.6336]
[1759760742401,2.464,4639.5,4637.3,0.6336]
[1759760742402,2.15540898,4639.5,4637.4,0.4493]
[1759760742706,2.15549759,4639.3,4637.5,3.0976]
[1759760742905,0.436,4639.4,4637.8,2.1561788]
[1759760743126,2.15569149,4638.9,4638.0,2.15605671]
[1759760743327,2.15531176,4639.7,4638.1,1.12692485]
[1759760743551,2.464,4639.9,4637.9,2.464]
[1759760743552,0.43906037,4639.9,4638.2,0.4493]
[1759760743926,2.15559389,4639.1,4638.2,2.60529637]
[1759760744129,2.4,4639.8,4632.7,2.70351375]
[1759760744130,2.15479075,4640.9,4638.3,2.9143]
[1759760744341,0.108,4639.6,4639.0,0.108]
[1759760744538,0.108,4639.6,4639.0,0.5573]
[1759760744833,2.15559052,4639.1,4639.0,0.108]
[1759760745003,0.65155905,4639.1,4638.3,1.015]
[1759760745211,0.108,4639.0,4638.4,0.108]
[1759760745715,2.15554972,4639.2,4638.7,0.108]
[1759760746034,2.15554972,4639.2,4638.5,0.4493]
[1759760746035,0.108,4639.7,4639.0,0.108]
[1759760746238,2.15559052,4639.1,4639.0,0.108]
[1759760746736,0.108,4639.7,4639.0,0.108]
[1759760746940,0.108,4639.7,4639.0,0.5573]
[1759760747248,2.4,4640.2,4639.0,0.4493]
[1759760747448,0.108,4640.1,4639.3,0.108]
[1759760747666,0.108,4640.1,4639.3,0.5573]
[1759760748227,0.108,4640.1,4639.3,0.4493]
[1759760748531,2.15526531,4639.8,4639.7,0.108]
[1759760748833,2.1554888,4639.4,4639.2,1.123]
[1759760749026,2.15536468,4639.6,4639.4,0.108]
[1759760749229,0.108,4640.1,4639.4,0.5573]
[1759760749428,0.108,4640.1,4639.4,0.108]
[1759760749728,2.15508543,4640.2,4640.0,0.108]
[1759760750029,2.15511022,4640.2,4640.0,0.108]
[1759760750229,4.55502981,4640.4,4640.0,0.108]
[1759760750429,2.4,4640.5,4640.0,0.5573]
[1759760750631,0.108,4640.7,4640.0,0.5573]
[1759760750832,2.15496011,4640.5,4640.0,0.5573]
[1759760751088,0.108,4640.7,4640.0,0.108]
[1759760751264,2.15512596,4640.1,4640.0,0.108]
[1759760751475,0.436,4640.1,4638.7,0.102]
[1759760751628,0.42666018,4640.8,4638.8,0.4493]
[1759760751830,2.1551578,4640.1,4638.9,0.6336]
[1759760752127,2.1551578,4640.1,4638.7,0.102]
[1759760752128,2.15502618,4640.4,4639.1,0.6336]
[1759760752324,2.15487576,4640.7,4639.2,2.71308825]
[1759760752570,0.43377617,4641.1,4639.3,5.06779143]
[1759760752739,4.99070803,4641.0,4639.3,0.4493]
[1759760752939,2.15502556,4640.4,4639.5,2.15540194]
[1759760753141,2.15445878,4641.6,4639.5,2.15540194]
[1759760753142,0.436,4641.4,4639.6,0.4493]
[1759760753340,2.1550913,4640.2,4639.7,0.26046633]
[1759760753661,0.436,4641.0,4639.8,0.4493]
[1759760753863,2.15521301,4640.0,4639.8,2.463]
[1759760754045,0.436,4640.6,4639.2,0.10829]
[1759760754240,2.15534186,4639.7,4639.2,1.557]
[1759760754463,2.15534186,4639.7,4638.5,0.4493]
[1759760754464,2.1554067,4639.5,4638.5,2.8493]
[1759760754764,2.15540118,4639.6,4639.0,2.463]
[1759760754971,2.15540867,4639.5,4639.0,2.463]
[1759760755176,2.15535888,4639.6,4639.1,2.9123]
[1759760755344,2.15516705,4640.1,4639.2,0.74053]
[1759760755539,2.4,4640.5,4639.2,0.74053]
[1759760755540,4.5549572,4640.5,4639.2,0.74053]
[1759760755741,2.15530555,4639.8,4639.2,0.74053]
[1759760756052,2.463,4640.9,4639.2,0.74053]
[1759760756053,2.4,4640.8,4639.3,2.9123]
[1759760756255,0.436,4641.2,4639.5,0.6336]
[1759760756556,2.15466161,4641.1,4639.6,3.26689]
[1759760756765,0.436,4641.0,4639.6,0.35459]
[1759760756969,2.4,4640.9,4638.9,0.4493]
[1759760757140,0.436,4640.8,4639.0,0.337]
[1759760757343,2.836,4640.8,4638.9,0.4493]
[1759760757556,2.59081024,4640.8,4639.0,0.991]
[1759760757772,4.61757781,4641.3,4639.1,2.463]
[1759760757773,2.4,4640.6,4639.1,2.463]
[1759760757973,2.1554107,4639.5,4639.1,2.463]
[1759760758179,2.15527886,4639.8,4639.2,0.4493]
[1759760758483,2.155483,4639.4,4638.8,0.4493]
[1759760758640,2.15512596,4640.1,4639.0,2.15560676]
[1759760758840,2.4,4640.2,4639.0,2.15560676]
[1759760759051,2.1553273,4639.7,4639.1,2.462]
[1759760759276,2.15527328,4639.8,4639.1,2.462]
[1759760759479,2.15527328,4639.8,4639.0,2.6316901]
[1759760759480,4.55509488,4640.2,4639.0,0.47606792]
[1759760759778,4.55509488,4640.2,4638.3,0.6336]
[1759760759779,2.4,4640.6,4638.7,0.4493]
[1759760759983,0.436,4640.2,4638.8,2.462]
[1759760760188,0.436,4640.2,4638.8,4.61771881]
[1759760760383,2.15568262,4639.0,4638.7,0.4493]
[1759760760672,2.15568262,4639.0,4637.1,0.001]
[1759760760673,2.15582055,4638.7,4638.2,1.202]
[1759760760873,2.1555968,4639.1,4638.3,1.202]
[1759760761075,0.436,4639.6,4638.3,2.9113]
[1759760761247,2.4,4639.5,4637.8,0.4493]
[1759760761448,0.108,4639.3,4638.6,0.108]
[1759760762507,2.15572309,4638.9,4638.6,0.108]
[1759760762710,0.108,4639.3,4638.6,0.108]
[1759760762880,2.508,4639.3,4638.6,0.108]
[1759760763200,2.1557764,4638.7,4638.6,0.108]
[1759760763700,2.15566803,4639.0,4638.6,0.108]
[1759760764021,0.445,4639.2,4638.6,0.108]
[1759760764314,2.15573952,4638.8,4638.6,0.108]
[1759760764488,2.4,4640.2,4638.7,0.4474]
[1759760764674,0.445,4640.3,4638.7,0.4474]
[1759760764989,2.1555362,4639.3,4638.7,0.4474]
[1759760765188,0.445,4641.1,4638.8,0.6336]
[1759760765386,0.43791806,4641.5,4639.0,2.78923699]
[1759760765387,0.445,4641.0,4639.0,2.78923699]
[1759760765598,2.15514128,4640.1,4639.1,2.462]
[1759760765771,2.15514128,4640.1,4639.2,2.462]
[1759760765971,2.15514128,4640.1,4638.9,2.60303975]
[1759760765972,0.445,4640.2,4638.9,2.60307855]
[1759760766177,2.15531626,4639.7,4639.0,2.462]
[1759760766384,2.15508987,4640.2,4639.3,2.15546168]
[1759760766580,4.55471351,4641.0,4639.3,1.12470522]
[1759760766581,2.15513087,4640.1,4639.3,1.12470522]
[1759760766799,2.4,4640.7,4639.3,1.12470522]
[1759760767003,2.62995736,4641.4,4638.3,0.6336]
[1759760767004,0.22995736,4641.4,4639.5,0.6336]
[1759760767178,2.15485233,4640.7,4639.6,2.9094]
[1759760767377,2.15484974,4640.7,4639.7,0.4474]
[1759760767698,2.154806,4640.8,4639.7,2.60269772]
[1759760767919,2.15472762,4641.0,4639.8,5.06465501]
[1759760768097,2.1547828,4640.9,4639.9,0.4474]
[1759760768277,2.1548125,4640.8,4639.9,0.4474]
[1759760768608,2.15464894,4641.2,4640.1,2.15512113]
[1759760768904,2.15481172,4640.8,4640.2,0.4474]
[1759760769110,2.4,4642.2,4639.8,0.5064655]
[1759760769111,0.445,4641.2,4639.8,0.5064655]
[1759760769278,0.445,4641.2,4639.9,2.462]
[1759760769677,0.4442,4641.7,4640.3,2.15502448]
[1759760769880,0.4442,4641.7,4640.2,2.15507039]
[1759760770086,0.4442,4641.7,4640.0,0.4474]
[1759760770087,2.15468884,4641.1,4640.3,4.61702751]
[1759760770282,2.4,4641.6,4640.4,0.46170275]
[1759760770488,0.4442,4641.7,4640.4,3.0640893]
[1759760770807,2.15471784,4641.0,4640.5,2.462]
[1759760770987,0.002,4640.7,4640.5,2.9094]
[1759760771185,0.002,4640.7,4640.5,2.462]
[1759760771423,0.002,4640.7,4640.6,3.52826404]
[1759760771581,0.002,4640.7,4640.6,1.37337028]
[1759760771930,0.002,4640.7,4640.6,0.29237028]
[1759760772131,0.002,4640.7,4640.6,2.462]
[1759760772427,2.15497842,4640.5,4639.5,0.4474]
[1759760772615,0.002,4640.7,4639.6,2.462]
[1759760772791,0.002,4640.7,4639.8,2.15526531]
[1759760772991,0.002,4640.7,4640.0,2.78873516]
[1759760773316,0.002,4640.7,4640.2,2.15507131]
[1759760773485,0.002,4640.7,4640.1,0.4474]
[1759760773690,0.002,4640.7,4640.3,2.462]
[1759760773885,0.002,4640.7,4640.4,0.6336]
[1759760774224,0.002,4640.7,4640.6,2.78849376]
[1759760774632,0.002,4640.7,4640.6,3.34389376]
[1759760775002,0.002,4640.7,4640.6,1.189]
[1759760775215,0.002,4640.7,4640.6,3.34389376]
[1759760776030,0.002,4640.7,4640.6,1.189]
[1759760776188,0.002,4640.7,4640.6,6.20194976]
[1759760776395,0.002,4640.7,4640.6,3.73994976]
[1759760776596,0.002,4640.7,4640.6,6.20194976]
[1759760777024,0.002,4642.3,4641.5,2.15446894]
[1759760777227,0.002,4642.3,4641.6,2.462]
[1759760777434,0.002,4642.3,4642.2,0.108]
[1759760777605,0.002,4642.3,4642.2,2.57]
[1759760777928,0.002,4642.3,4642.2,3.0174]
[1759760778303,0.002,4642.3,4642.2,3.651]
[1759760778698,0.002,4642.3,4642.2,5.80515104]
[1759760778930,0.002,4642.3,4642.2,4.44693874]
[1759760779140,0.002,4642.3,4642.2,5.80515104]
[1759760779503,0.002,4642.3,4642.2,8.20515104]
[1759760779704,0.002,4642.3,4642.2,12.30343804]
[1759760779925,0.002,4642.3,4642.2,11.78916004]
[1759760780106,0.002,4642.3,4642.2,5.63515104]
[1759760780301,0.002,4642.3,4642.2,11.19193928]
[1759760780628,0.002,4642.3,4642.2,4.25993824]
[1759760780827,0.002,4642.3,4641.7,0.46164689]
[1759760780828,0.447,4642.3,4641.7,0.46164689]
[1759760781175,0.447,4642.3,4640.3,1.12145432]
[1759760781435,0.447,4642.3,4638.8,2.15568928]
[1759760781436,0.445,4642.2,4640.4,2.461]
[1759760781636,0.445,4642.2,4640.5,2.291]
[1759760781803,0.2847,4642.1,4640.6,0.2291]
[1759760782332,0.445,4642.0,4640.6,0.2291]
[1759760782520,2.15452838,4641.4,4640.6,0.2291]
[1759760782725,0.2847,4642.1,4640.6,0.2291]
[1759760783034,0.445,4642.0,4640.8,2.15480089]
[1759760783334,2.59926928,4642.0,4640.9,2.461]
[1759760783531,2.15430482,4641.9,4641.0,2.461]
[1759760783835,0.445,4642.0,4641.1,2.461]
[1759760784343,2.59925161,4642.0,4641.1,2.461]
[1759760784646,0.445,4641.9,4640.4,2.15494115]
[1759760784840,0.445,4641.9,4640.5,2.67649412]
[1759760785062,0.445,4641.9,4640.6,4.61588147]
[1759760785368,0.445,4641.9,4640.5,0.21549412]
[1759760785532,2.15433667,4641.8,4640.7,2.461]
[1759760785733,0.445,4641.9,4640.7,2.461]
[1759760785934,0.445,4641.9,4640.8,2.77338941]
[1759760786128,2.15610912,4642.3,4640.8,2.77338941]
[1759760786129,0.002,4642.3,4640.9,0.6336]
[1759760786467,2.402,4642.3,4640.9,0.6336]
[1759760786669,0.002,4642.3,4641.1,0.6336]
[1759760786872,0.002,4642.3,4641.1,2.78826093]
[1759760787050,0.002,4642.3,4641.2,0.32356609]
[1759760787363,0.002,4642.3,4641.1,2.78826161]
[1759760787562,0.002,4642.3,4641.1,0.6336]
[1759760787740,0.002,4642.3,4641.1,2.7882585]
[1759760787942,0.002,4642.3,4641.2,2.15457773]
[1759760788142,0.445,4642.2,4640.8,0.31238941]
[1759760788348,2.15428984,4642.0,4641.3,2.461]
[1759760788565,2.59915461,4642.2,4640.2,0.4474]
[1759760788865,2.59915461,4642.2,4640.7,2.15481073]
[1759760788866,0.445,4641.9,4640.7,2.15481073]
[1759760789266,2.1541596,4642.2,4640.5,0.6336]
[1759760789444,0.445,4642.2,4640.8,0.6336]
[1759760789644,0.445,4642.2,4641.6,0.108]
[1759760789645,2.59916463,4642.2,4641.6,0.108]
[1759760789850,0.445,4642.2,4641.7,2.461]
[1759760790372,0.11,4642.3,4641.7,2.461]
[1759760790373,0.002,4642.3,4641.7,2.461]
[1759760790583,0.002,4642.3,4642.1,0.108]
[1759760792467,0.002,4642.3,4642.2,2.461]
[1759760792674,0.002,4642.3,4642.2,2.76264]
[1759760793070,0.002,4642.3,4642.2,5.37459104]
[1759760793477,0.002,4642.3,4642.2,0.30164]
[1759760793647,0.002,4642.3,4642.2,5.07295104]
[1759760794394,0.0012,4642.3,4642.2,5.07295104]
[1759760794565,0.0012,4642.3,4642.2,5.75355104]
[1759760794874,0.0012,4642.3,4642.2,0.108]
[1759760795039,0.0012,4642.3,4642.2,2.569]
[1759760795571,0.0012,4642.3,4642.2,5.43785104]
[1759760795776,0.0012,4642.3,4642.2,0.3649]
[1759760795948,0.0012,4642.3,4642.2,0.108]
[1759760796273,0.0012,4642.3,4642.2,2.26215104]
[1759760796462,0.0012,4642.3,4642.2,5.55875104]
[1759760796975,0.0012,4642.3,4642.2,7.95875104]
[1759760799073,0.0012,4642.3,4642.2,10.46058904]
[1759760799257,0.0012,4642.3,4642.2,11.9571094]
[1759760799656,0.0012,4642.3,4642.2,11.72207196]
[1759760799855,1e-08,4642.5,4642.4,2.78765824]
[1759760800167,1e-08,4642.5,4642.4,17.65757324]
[1759760800464,1e-08,4642.5,4642.4,20.94335424]
[1759760800671,1e-08,4642.5,4642.4,23.11184605]
[1759760801053,1e-08,4642.5,4642.4,24.18646505]
[1759760801781,0.002,4643.1,4643.0,5.18737988]
[1759760801953,0.002,4643.1,4643.0,7.64737988]
[1759760802278,0.002,4643.1,4643.0,15.53753588]
[1759760802583,0.002,4643.1,4643.0,13.62553532]
[1759760802955,0.002,4643.1,4643.0,9.87451832]
[1759760803161,0.002,4643.1,4643.0,13.60400932]
[1759760803362,0.002,4643.1,4643.0,12.81600932]
[1759760804049,0.002,4643.1,4643.0,17.10777932]
[1759760805161,0.002,4643.1,4643.0,19.45099232]
[1759760805362,0.002,4643.1,4643.0,20.38643432]
[1759760805565,0.002,4643.1,4643.0,9.41651832]
[1759760805952,0.002,4643.1,4643.0,12.15073032]
[1759760806150,0.002,4643.1,4643.0,12.60873032]
[1759760806347,0.002,4643.1,4643.0,9.87451832]
[1759760806546,0.002,4643.1,4643.0,9.41651832]
[1759760806980,0.002,4643.1,4643.0,9.87451832]
[1759760807553,0.002,4643.1,4643.0,13.53589332]
[1759760807968,0.002,4643.1,4643.0,9.87451832]
[1759760808470,0.002,4643.1,4643.0,12.56803332]
[1759760808657,0.002,4643.1,4643.0,12.56799332]
[1759760808858,0.002,4643.1,4643.0,9.41651832]
[1759760809381,0.002,4643.1,4643.0,16.01909832]
[1759760809572,0.002,4643.1,4643.0,17.73569832]
[1759760810286,0.002,4643.1,4643.0,9.87451832]
[1759760810592,0.002,4643.1,4643.0,14.01277732]
[1759760810993,0.002,4643.1,4643.0,12.75268032]
[1759760811245,0.002,4643.1,4643.0,4.80273844]
[1759760811361,0.002,4643.1,4643.0,4.55377988]
[1759760811561,0.002,4643.1,4643.0,2.15377988]
[1759760811785,0.002,4643.1,4643.0,2.26177988]
[1759760812164,0.002,4643.1,4643.0,7.75437988]
[1759760813090,0.002,4643.1,4643.0,5.29537988]
[1759760813393,0.002,4643.1,4643.0,8.49930248]
[1759760813772,0.002,4643.1,4643.0,6.3455226]
[1759760814090,0.002,4643.1,4643.0,8.49930248]
[1759760815377,0.002,4643.1,4643.0,8.95730248]
[1759760815581,0.002,4643.1,4643.0,16.33495348]
[1759760815892,0.002,4643.1,4643.0,13.27003825]
[1759760816094,0.002,4644.1,4643.5,2.78714797]
[1759760816391,0.002,4644.1,4644.0,5.1869161]
[1759760816560,0.002,4644.1,4644.0,17.4469631]
[1759760816762,0.002,4644.1,4644.0,17.4708581]
[1759760817063,0.002,4644.1,4644.0,16.2799451]
[1759760817460,0.002,4644.1,4644.0,13.3413231]
[1759760817690,0.002,4644.1,4644.0,14.89079629]
[1759760817992,0.002,4644.1,4644.0,14.68527229]
[1759760818177,0.002,4644.1,4644.0,14.15185829]
[1759760818582,0.002,4644.1,4644.0,7.19438929]
[1759760818796,0.002,4646.2,4645.0,2.78645252]
[1759760818982,0.002,4646.2,4645.0,7.92409777]